fUST/lending_fUST_20240211
["ID","MTS","AMOUNT","RATE_DAILY","PERIOD"]
[313704014,1707598245759,-155.11569364,0.00028994,2]
[313704018,1707598245768,-160.39361874,0.00028994,2]
[313704022,1707598245777,-1860.08325202,0.00028995,2]
[313704025,1707598245787,-9010.67,0.00028995,2]
[313704029,1707598245796,-263.77227934,0.00028997,2]
[313704033,1707598245806,-155.19223926,0.00028997,2]
[313704036,1707598245815,-231.88068923,0.00028997,2]
[313704038,1707598245824,-1587.53818011,0.00028997,2]
[313704042,1707598245833,-169.5872925,0.00028997,2]
[313704045,1707598245842,-154.8915759,0.00028997,2]
[313704047,1707598245851,-235.29242868,0.00028998,10]
[313704049,1707598245861,-26977.63261282,0.00028999,10]
[313704051,1707598245870,-183.38489793,0.00029,10]
[313704053,1707598245879,-1000.0,0.00029,29]
[313704055,1707598245888,-835.40006995,0.00029,2]
[313704057,1707598245897,-17051.07825136,0.00029,4]
[313704061,1707598245906,-1000.0,0.00029,29]
[313704064,1707598245915,-500.0,0.00029,5]
[313704067,1707598245924,-3400.0,0.00029,7]
[313704070,1707598245933,-2500.0,0.00029,2]
[313704073,1707598245942,-291.41619838,0.00029,2]
[313704076,1707598245951,-3173.91350451,0.00029,2]
[313704079,1707598245963,-2826.08649549,0.00029,2]
[313704082,1707598245973,-2181.41350452,0.00029,2]
[313704086,1707598245984,-455.91764064,0.00029,2]
[313704090,1707598246000,-371.3167664,0.00029,2]
[313704094,1707598246011,-746.10949824,0.00029,2]
[313704099,1707598246028,-409.82000001,0.0002879,3]
[313704103,1707598246039,-6755.62490135,0.0002879,3]
[313704206,1707598246510,-7999.62509864,0.0002879,3]
[313704209,1707598246519,-14653.55831546,0.00029,2]
[313704212,1707598246531,-28396.68427474,0.00029,2]
[313704215,1707598246544,-474.12382984,0.00029,2]
[313704218,1707598246553,-184.83087628,0.00029,5]
[313704220,1707598246562,-349.0418315,0.00029,7]
[313704222,1707598246572,-417.53955785,0.00029,7]
[313704224,1707598246582,-1570.04015897,0.00029,5]
[313704227,1707598246591,-358.85317144,0.00029,7]
[313704230,1707598246600,-453.0,0.00029,14]
[313704232,1707598246611,-2199.13539049,0.00029,5]
[313704235,1707598246619,-239.18905434,0.00029,7]
[313704237,1707598246628,-1232.31819954,0.00029,5]
[313704240,1707598246638,-2000.0,0.00029,2]
[313704243,1707598246647,-2000.0,0.00029,2]
[313704246,1707598246656,-327.61606506,0.00029,5]
[313704249,1707598246665,-2000.0,0.0002901,2]
[313704252,1707598246675,-2000.0,0.0002901,2]
[313704255,1707598246685,-2000.0,0.0002902,2]
[313704258,1707598246694,-2000.0,0.0002902,2]
[313704261,1707598246704,-2000.0,0.0002903,2]
[313704264,1707598246713,-2000.0,0.0002903,2]
[313704267,1707598246723,-2000.0,0.0002904,2]
[313704270,1707598246731,-2000.0,0.0002904,2]
[313704272,1707598246740,-2000.0,0.0002905,2]
[313704275,1707598246749,-2000.0,0.0002905,2]
[313704278,1707598246759,-970.71205244,0.0002906,2]
[313704404,1707598523003,250.79404735,0.00029,30]
[313704454,1707598814100,714.80250321,0.00015174,2]
[313704455,1707598881154,-163.17551542,0.00016757,2]
[313704456,1707598884776,523.84984319,0.00016756,2]
[313704457,1707598897638,261.98617996,0.00016757,2]
[313704458,1707598898769,523.6038013,0.00016757,2]
[313704459,1707598899935,247.39952375,0.00016757,2]
[313704460,1707598901620,163.17551542,0.00016757,2]
[313704461,1707598905105,537.55731333,0.00016757,2]
[313704462,1707598906325,2364.07679221,0.00016757,2]
[313704468,1707599190140,-3489.17551542,0.0001574,2]
[313704470,1707599228123,-201.57742801,0.00015738,2]
[313704471,1707599233601,13965.27712,0.00014744,2]
[313704472,1707599233630,1499.41487191,0.00014744,2]
[313704473,1707599233659,25000.0,0.00014744,2]
[313704474,1707599233688,2256.91336239,0.00014744,2]
[313704475,1707599239093,-185.07172042,0.00015736,2]
[313704476,1707599250842,276.52863547,0.00014162,2]
[313704479,1707599282454,161.8881942,0.00014739,2]
[313704481,1707599349125,-3757.67448716,0.00015727,2]
[313704482,1707599349146,-17346.9381108,0.00015728,2]
[313704483,1707599356088,-247.39952375,0.00015727,2]
[313704484,1707599356110,-1617.96059314,0.00015728,2]
[313704485,1707599356130,-1962.08695395,0.00015728,2]
[313704486,1707599356149,-19929.20121893,0.00015728,2]
[313704487,1707599356168,-154.87609912,0.00015729,2]
[313704488,1707599356189,-228.90420585,0.00015729,2]
[313704489,1707599356208,-4182.18796512,0.00015729,2]
[313704490,1707599356229,-65761.05133014,0.00015729,2]
[313704491,1707599359116,-718.43159895,0.00015726,2]
[313704492,1707599359136,-25606.78541694,0.00015727,2]
[313704493,1707599363097,-261.98617996,0.00015726,2]
[313704494,1707599363118,-2146.33440379,0.00015727,2]
[313704497,1707599370103,-2767.54360886,0.00015726,2]
[313704498,1707599370123,-11733.23157722,0.00015726,2]
[313704499,1707599371094,-7231.66712672,0.00015726,2]
[313704500,1707599371114,-1092.93178949,0.00015726,2]
[313704560,1707599432516,-20940.57997335,0.00015722,2]
[313704562,1707599432526,-154.87609912,0.00015722,2]
[313704564,1707599432536,-20966.36090034,0.00015722,2]
[313704566,1707599432545,-37080.86042547,0.00015723,2]
[313704567,1707599432554,-12322.5567052,0.00015724,2]
[313704569,1707599432566,-6635.97513905,0.00015724,2]
[313704571,1707599432575,-3818.34769459,0.00015724,2]
[313704573,1707599432584,-356.22593592,0.00015725,2]
[313704575,1707599432594,-293.82389832,0.00015725,2]
[313704577,1707599432603,-718.30431836,0.00015725,2]
[313704579,1707599432611,-268.52915263,0.00015725,2]
[313704581,1707599432620,-166.88701004,0.00015725,2]
[313704584,1707599432634,-96.53279586,0.00015725,2]
[313704586,1707599432643,-15124.51032594,0.00015725,2]
[313704587,1707599432654,-1139.5,0.00015725,2]
[313704619,1707599438706,-67702.29524803,0.00015725,2]
[313704620,1707599438717,-868.47644985,0.00015726,2]
[313704621,1707599438726,-651.85853467,0.00015735,2]
[313704622,1707599438735,-2857.14290852,0.00015735,2]
[313704623,1707599438744,-2605.674566,0.00015744,2]
[313704624,1707599438753,-323.90420148,0.00015744,2]
[313704625,1707599438762,-161.5844476,0.00015744,2]
[313704626,1707599438771,-155.0480649,0.00015744,2]
[313704627,1707599438780,-155.1193995,0.00015744,2]
[313704628,1707599438790,-24900.0,0.00015747,2]
[313704629,1707599438799,-347.19207,0.00016291,2]
[313704630,1707599438808,-261.17070193,0.000165,2]
[313704631,1707599438817,-200.0,0.00016512,2]
[313704632,1707599438826,-182.29458514,0.00016757,2]
[313704633,1707599438836,-6902.93464755,0.00016761,2]
[313704634,1707599438846,-2064.9784931,0.00017774,2]
[313704635,1707599438856,-1411.76778685,0.00018141,2]
[313704636,1707599438866,-280.0,0.00018164,2]
[313704637,1707599438876,-820.31578282,0.00018324,2]
[313704638,1707599438888,-481.7415868,0.00018324,2]
[313704639,1707599438898,-481.88451686,0.00018324,2]
[313704640,1707599438907,-330.18381509,0.00018324,2]
[313704641,1707599438916,-459.55495517,0.00018324,2]
[313704642,1707599438925,-535.69531343,0.00018327,2]
[313704643,1707599438935,-167.58112914,0.00018327,2]
[313704644,1707599438944,-1688.81025991,0.00018327,2]
[313704645,1707599438954,-154.90705577,0.00018327,2]
[313704646,1707599438963,-285.92416695,0.00018327,2]
[313704647,1707599438972,-154.90705577,0.00018328,2]
[313704648,1707599438982,-168.130358,0.00019178,2]
[313704649,1707599438991,-563.40891521,0.00019497,2]
[313704650,1707599439001,-1115.39137616,0.000195,2]
[313704651,1707599439010,-1585.0679959,0.00019514,2]
[313704652,1707599439019,-391.0,0.0001998,2]
[313704653,1707599439029,-323.82632334,0.0002,2]
[313704654,1707599439039,-154.90705577,0.0002,2]
[313704655,1707599439049,-73912.554848,0.0002,2]
[313704656,1707599439058,-155.08840039,0.0002061,2]
[313704657,1707599439068,-155.08840039,0.0002061,2]
[313704658,1707599439077,-155.12477302,0.0002061,2]
[313704659,1707599439086,-19145.40708381,0.00020612,2]
[313704660,1707599439095,-154.90705577,0.00020714,2]
[313704661,1707599439106,-319.00198815,0.0002072,2]
[313704662,1707599439116,-200.06850682,0.00020816,2]
[313704663,1707599439125,-156.51008988,0.00020817,2]
[313704664,1707599439134,-375.905843,0.00020818,2]
[313704665,1707599439145,-167.19218389,0.00020818,2]
[313704666,1707599439155,-179.284348,0.00020818,2]
[313704667,1707599439165,-1297.69513983,0.0002082,2]
[313704668,1707599439174,-154.92253873,0.0002082,2]
[313704669,1707599439184,-1034.41107823,0.0002082,3]
[313704670,1707599439194,-155.03105737,0.0002082,2]
[313704671,1707599439203,-2101.51786212,0.0002082,2]
[313704672,1707599439212,-2045.48652279,0.0002082,2]
[313704673,1707599439221,-7981.9915415,0.0002082,2]
[313704674,1707599439230,-1384.56350814,0.0002082,2]
[313704675,1707599439239,-849.46172524,0.0002082,2]
[313704676,1707599439249,-709.18226551,0.00020821,2]
[313704677,1707599439257,-446.26920227,0.00020822,2]
[313704678,1707599439266,-500.0,0.00020822,2]
[313704679,1707599439276,-500.0,0.00020822,2]
[313704680,1707599439284,-585.10004292,0.00020822,2]
[313704681,1707599439294,-202.7,0.00020822,2]
[313704682,1707599439303,-500.0,0.00020822,2]
[313704683,1707599439311,-500.0,0.00020822,2]
[313704684,1707599439320,-500.0,0.00020822,2]
[313704685,1707599439333,-500.0,0.00020822,2]
[313704686,1707599439343,-500.0,0.00020822,2]
[313704687,1707599439352,-500.0,0.00020822,2]
[313704688,1707599439361,-500.0,0.00020822,2]
[313704689,1707599439370,-366.00632997,0.00020822,2]
[313704690,1707599439378,-500.0,0.00020822,2]
[313704691,1707599439387,-500.0,0.00020822,2]
[313704692,1707599439397,-500.0,0.00020822,2]
[313704693,1707599439407,-500.0,0.00020822,2]
[313704694,1707599439417,-500.0,0.00020822,2]
[313704695,1707599439426,-500.0,0.00020822,2]
[313704696,1707599439436,-500.0,0.00020822,2]
[313704697,1707599439447,-500.0,0.00020822,2]
[313704698,1707599439456,-500.0,0.00020822,2]
[313704699,1707599439467,-500.0,0.00020822,2]
[313704700,1707599439477,-500.0,0.00020822,2]
[313704701,1707599439486,-500.0,0.00020822,2]
[313704702,1707599439495,-500.0,0.00020822,2]
[313704703,1707599439505,-500.0,0.00020822,2]
[313704704,1707599439514,-500.0,0.00020822,2]
[313704705,1707599439523,-500.0,0.00020822,2]
[313704706,1707599439532,-500.0,0.00020822,2]
[313704707,1707599439541,-500.0,0.00020822,2]
[313704708,1707599439550,-500.0,0.00020822,2]
[313704709,1707599439559,-500.0,0.00020822,2]
[313704710,1707599439569,-500.0,0.00020822,2]
[313704711,1707599439577,-500.0,0.00020822,2]
[313704712,1707599439587,-500.0,0.00020822,2]
[313704713,1707599439597,-500.0,0.00020822,2]
[313704714,1707599439606,-500.0,0.00020822,2]
[313704715,1707599439617,-500.0,0.00020822,2]
[313704716,1707599439627,-500.0,0.00020822,2]
[313704717,1707599439636,-500.0,0.00020822,2]
[313704718,1707599439646,-500.0,0.00020822,2]
[313704719,1707599439656,-500.0,0.00020822,2]
[313704720,1707599439666,-500.0,0.00020822,2]
[313704721,1707599439676,-500.0,0.00020822,2]
[313704722,1707599439685,-500.0,0.00020822,2]
[313704723,1707599439695,-500.0,0.00020822,2]
[313704724,1707599439704,-492.20715964,0.00020822,2]
[313704725,1707599439718,-500.0,0.00020822,2]
[313704726,1707599439728,-500.0,0.00020822,2]
[313704727,1707599439737,-500.0,0.00020822,2]
[313704728,1707599439748,-500.0,0.00020822,2]
[313704729,1707599439758,-500.0,0.00020822,2]
[313704730,1707599439768,-494.78333729,0.00020822,2]
[313704731,1707599439777,-489.67980136,0.00020822,2]
[313704732,1707599439786,-500.0,0.00020822,2]
[313704733,1707599439795,-500.0,0.00020822,2]
[313704734,1707599439805,-500.0,0.00020822,2]
[313704735,1707599439814,-500.0,0.00020822,2]
[313704736,1707599439823,-500.0,0.00020822,2]
[313704737,1707599439833,-500.0,0.00020822,2]
[313704738,1707599439845,-409.38349753,0.00020822,2]
[313704739,1707599439855,-500.0,0.00020822,2]
[313704740,1707599439866,-500.0,0.00020822,2]
[313704741,1707599439876,-500.0,0.00020822,2]
[313704742,1707599439887,-345.725526,0.00020822,2]
[313704743,1707599439896,-500.0,0.00020822,2]
[313704744,1707599439905,-500.0,0.00020822,2]
[313704745,1707599439915,-500.0,0.00020822,2]
[313704746,1707599439925,-500.0,0.00020822,2]
[313704747,1707599439934,-500.0,0.00020822,2]
[313704748,1707599439943,-280.32169526,0.00020822,2]
[313704749,1707599439953,-500.0,0.00020822,2]
[313704750,1707599439962,-500.0,0.00020822,2]
[313704752,1707599439971,-500.0,0.00020822,2]
[313704753,1707599439980,-500.0,0.00020822,2]
[313704754,1707599439989,-500.0,0.00020822,2]
[313704755,1707599439999,-500.0,0.00020822,2]
[313704756,1707599440008,-8887.8817067,0.0002169,2]
[313704757,1707599440017,-8334.6187283,0.0002169,2]
[313704759,1707599440026,-4037.6227809,0.0002169,2]
[313704761,1707599440035,-3671.51323811,0.0002169,2]
[313704763,1707599440044,-262.8706451,0.00021918,2]
[313704765,1707599440055,-200.0,0.00021978,7]
[313704767,1707599440065,-348.0,0.00021978,7]
[313704769,1707599440075,-410.66222966,0.00022189,3]
[313704771,1707599440084,-1173.48343021,0.00022189,3]
[313704772,1707599440093,-6459.05382054,0.00022189,3]
[313704774,1707599440102,-166.82198532,0.00022189,3]
[313704775,1707599440111,-212.37111031,0.00022189,3]
[313704776,1707599440121,-319.00198807,0.00022851,2]
[313704777,1707599440130,-741.82846738,0.00023,2]
[313704778,1707599440139,-593.97876573,0.00024,2]
[313704779,1707599440148,-200.0,0.00024176,7]
[313704780,1707599440158,-200.0,0.00024176,7]
[313704781,1707599440168,-368.0,0.00024176,7]
[313704782,1707599440177,-347.19207,0.00024437,2]
[313704783,1707599440186,-154.87609912,0.0002465,2]
[313704784,1707599440195,-12723.42901826,0.0002471,2]
[313704785,1707599440204,-319.00198807,0.00024982,2]
[313704786,1707599440212,-335.73756915,0.00025,2]
[313704787,1707599440222,-7410.35268892,0.00025,2]
[313704788,1707599440230,-1556.34990313,0.00025,2]
[313704789,1707599440239,-4740.91143851,0.00025,2]
[313704790,1707599440248,-239.35951133,0.00025,2]
[313704791,1707599440257,-280.60910696,0.00026,2]
[313704792,1707599440266,-155.40286838,0.00026,2]
[313704793,1707599440275,-1106.98028981,0.000264,2]
[313704794,1707599440284,-48933.02600869,0.000265,3]
[313704795,1707599440292,-200.0,0.00026593,15]
[313704796,1707599440301,-200.0,0.00026593,15]
[313704797,1707599440311,-623.7743064,0.00026895,2]
[313704798,1707599440322,-3088.24737076,0.00027,2]
[313704799,1707599440333,-319.00198807,0.00027113,2]
[313704800,1707599440343,-155.0,0.00027397,2]
[313704801,1707599440352,-500.0,0.00027397,2]
[313704802,1707599440363,-615.4781515,0.00027397,2]
[313704803,1707599440372,-12797.62,0.00027397,3]
[313704804,1707599440382,-500.0,0.00027534,2]
[313704805,1707599440391,-8680.98940855,0.0002755,4]
[313704806,1707599440401,-180.632147,0.00027572,2]
[313704807,1707599440411,-188.490795,0.00027572,2]
[313704808,1707599440420,-164.826695,0.00027572,2]
[313704809,1707599440430,-154.87609912,0.000276,2]
[313704810,1707599440439,-500.0,0.00027671,2]
[313704811,1707599440448,-644.34901449,0.0002772,2]
[313704812,1707599440458,-500.0,0.00027808,2]
[313704813,1707599440467,-402.93019452,0.000279,2]
[313704814,1707599440476,-500.0,0.00027945,2]
[313704815,1707599440486,-150.0,0.00027998,2]
[313704816,1707599440496,-500.0,0.00027999,2]
[313704817,1707599440506,-500.0,0.00027999,2]
[313704818,1707599440517,-280.05218316,0.00027999,2]
[313704819,1707599440527,-500.0,0.00027999,2]
[313704820,1707599440537,-439.82460265,0.00027999,2]
[313704821,1707599440548,-170.8214653,0.00027999,2]
[313704822,1707599440557,-500.0,0.00027999,2]
[313704823,1707599440566,-174.77101652,0.00027999,2]
[313704824,1707599440576,-361.95069611,0.00027999,2]
[313704825,1707599440585,-500.0,0.00027999,2]
[313704826,1707599440594,-500.0,0.00027999,2]
[313704827,1707599440603,-500.0,0.00027999,2]
[313704828,1707599440612,-500.0,0.00027999,2]
[313704829,1707599440622,-445.88419592,0.00027999,2]
[313704830,1707599440631,-500.0,0.00027999,2]
[313704831,1707599440640,-509.0963944,0.00027999,2]
[313704832,1707599440649,-500.0,0.00027999,2]
[313704833,1707599440658,-500.0,0.00027999,2]
[313704834,1707599440668,-500.0,0.00027999,2]
[313704835,1707599440676,-153.45509405,0.00027999,2]
[313704836,1707599440686,-3295.80975819,0.00028,2]
[313704837,1707599440695,-119671.97001862,0.00028,2]
[313704838,1707599440704,-200.75635052,0.00028,2]
[313704839,1707599440713,-201.64462394,0.00028,2]
[313704840,1707599440721,-600.0,0.00028,2]
[313704841,1707599440730,-33350.91636282,0.00028,2]
[313704880,1707599444977,-0.00084686,0.00015721,2]
[313704882,1707599445006,-19929.20037207,0.00015721,2]
[313704884,1707599445015,-7626.07857614,0.00027999,2]
[313704885,1707599445024,-87260.67873083,0.00028,2]
[313705004,1707599864452,777.10281141,0.00015995,3]
[313705005,1707599864480,257.30826682,0.00015995,3]
[313705007,1707599891727,1715.8749224,0.0001495,2]
[313705026,1707600109638,960.41812,0.00014398,2]
[313705028,1707600119656,19628.37676554,0.00014398,2]
[313705029,1707600119687,5271.62323446,0.00014398,2]
[313705048,1707600218787,453.055579,0.00014391,2]
[313705062,1707600447126,-482.65618865,0.00015268,2]
[313705063,1707600455690,1585.0679959,0.00014385,2]
[313705073,1707600546088,-323.90420148,0.00015257,2]
[313705074,1707600546108,-454.5514813,0.00015258,2]
[313705075,1707600546127,-537.55731333,0.00015259,2]
[313705076,1707600546147,-821.15351128,0.00015259,2]
[313705077,1707600546168,-19385.02449261,0.00015259,2]
[313705079,1707600556120,-2045.76741728,0.00015258,2]
[313705080,1707600556142,-544.17672632,0.00015259,2]
[313705081,1707600556163,-563.40891521,0.0001526,2]
[313705082,1707600556183,-83966.30557397,0.0001526,2]
[313705083,1707600556207,-1688.81025991,0.00015261,2]
[313705084,1707600556229,-19145.40708381,0.00015261,2]
[313705085,1707600556253,-18964.89870394,0.00015262,2]
[313705086,1707600556274,-4431.64715204,0.00015268,2]
[313705087,1707600556294,-314.39132539,0.00015282,2]
[313705088,1707600556501,-482.65618865,0.00015374,2]
[313705089,1707600556527,-7530.63020319,0.00015402,2]
[313705090,1707600560112,-820.31578282,0.00015257,2]
[313705091,1707600560132,-3757.67448716,0.00015257,2]
[313705092,1707600560153,-454.5514813,0.00015257,2]
[313705093,1707600560173,-590.3509011,0.00015258,2]
[313705094,1707600560194,-3174.06321454,0.00015402,2]
[313705095,1707600560216,-868.47644985,0.00015407,2]
[313705096,1707600560243,-651.85853467,0.00015408,2]
[313705097,1707600560263,-760.54654999,0.00015412,2]
[313705098,1707600561101,-1570.6436251,0.00015412,2]
[313705101,1707600567280,-323.90420148,0.00015401,2]
[313705102,1707600567301,-4571.74447246,0.00015412,2]
[313705103,1707600567322,-2064.9784931,0.00015512,2]
[313705136,1707600631837,-563.40891521,0.00015832,2]
[313705138,1707600631847,-1411.76778685,0.00015833,2]
[313705140,1707600631857,-155.1193995,0.00015896,2]
[313705142,1707600631866,-161.5844476,0.00015897,2]
[313705144,1707600631876,-2605.674566,0.00015897,2]
[313705146,1707600631885,-155.0480649,0.00015897,2]
[313705148,1707600631894,-2857.14290852,0.00015898,2]
[313705150,1707600631904,-154.90705577,0.00015915,2]
[313705152,1707600631914,-154.90705577,0.00015992,2]
[313705154,1707600631924,-535.69531343,0.00015992,2]
[313705156,1707600631933,-434.17875911,0.00015992,2]
[313705158,1707600631943,-481.7415868,0.00015993,2]
[313705160,1707600631952,-481.88451686,0.00015993,2]
[313705162,1707600631962,-200.06850682,0.00015993,2]
[313705164,1707600631971,-154.90705577,0.00015993,2]
[313705166,1707600631981,-285.92416695,0.00015993,2]
[313705167,1707600631990,-155.08840039,0.00015995,2]
[313705169,1707600632000,-7981.9915415,0.00015995,2]
[313705171,1707600632009,-1384.56350814,0.00015995,2]
[313705173,1707600632019,-375.905843,0.00015995,2]
[313705175,1707600632028,-849.46172524,0.00015995,2]
[313705177,1707600632037,-1317.78056579,0.00015995,2]
[313705179,1707600632047,-154.92253873,0.00015995,2]
[313705182,1707600632056,-199.84055074,0.00015995,2]
[313705184,1707600632065,-155.12477302,0.00015995,2]
[313705186,1707600632074,-2101.51786212,0.00015995,2]
[313705188,1707600632083,-155.08840039,0.00015995,2]
[313705190,1707600632093,-179.284348,0.00015995,2]
[313705192,1707600632102,-167.19218389,0.00015995,2]
[313705194,1707600632111,-156.51008988,0.00015995,2]
[313705196,1707600632121,-4990.20814217,0.00016,2]
[313705198,1707600632130,-261.17070193,0.0001669,2]
[313705199,1707600632140,-200.0,0.00016691,2]
[313705200,1707600632149,-314.39132538,0.00018062,2]
[313705202,1707600632158,-280.0,0.0001836,2]
[313705204,1707600632168,-168.13036,0.00019178,2]
[313705206,1707600632177,-1115.39137616,0.000195,2]
[313705208,1707600632186,-19929.20121893,0.00019797,2]
[313705210,1707600632195,-10840.66223834,0.00019798,2]
[313705213,1707600632207,-8054.48421154,0.00019979,3]
[313705215,1707600632220,-2962.71578846,0.00019979,3]
[313705217,1707600632230,-13068.51662069,0.00019989,3]
[313705260,1707600637877,-24900.0,0.00015723,2]
[313705261,1707600637887,-11850.48,0.00019989,3]
[313705262,1707600637896,-708.98856015,0.00019998,2]
[313705263,1707600637906,-1688.20558013,0.00019998,2]
[313705280,1707600638089,-7678.02695712,0.00019998,2]
[313705282,1707600638103,-168.12806356,0.00019998,2]
[313705284,1707600638112,-459.40087285,0.00019998,2]
[313705286,1707600638122,-1562.16651724,0.00019999,2]
[313705288,1707600638131,-364.58917028,0.00019999,2]
[313705290,1707600638140,-32610.2047783,0.00019999,2]
[313705292,1707600638149,-323.82632334,0.0002,2]
[313705294,1707600638158,-73912.554848,0.0002,2]
[313705296,1707600638167,-154.90705577,0.0002,2]
[313705298,1707600638176,-391.0,0.00020196,2]
[313705300,1707600638186,-500.0,0.00020822,2]
[313705302,1707600638195,-500.0,0.00020822,2]
[313705304,1707600638204,-585.10004292,0.00020822,2]
[313705306,1707600638213,-500.0,0.00020822,2]
[313705308,1707600638222,-500.0,0.00020822,2]
[313705310,1707600638232,-202.7,0.00020822,2]
[313705312,1707600638242,-500.0,0.00020822,2]
[313705314,1707600638251,-500.0,0.00020822,2]
[313705316,1707600638261,-500.0,0.00020822,2]
[313705318,1707600638270,-500.0,0.00020822,2]
[313705320,1707600638282,-500.0,0.00020822,2]
[313705323,1707600638300,-500.0,0.00020822,2]
[313705325,1707600638312,-500.0,0.00020822,2]
[313705327,1707600638323,-500.0,0.00020822,2]
[313705329,1707600638335,-500.0,0.00020822,2]
[313705332,1707600638345,-500.0,0.00020822,2]
[313705334,1707600638354,-500.0,0.00020822,2]
[313705336,1707600638365,-500.0,0.00020822,2]
[313705338,1707600638374,-500.0,0.00020822,2]
[313705340,1707600638384,-500.0,0.00020822,2]
[313705342,1707600638393,-500.0,0.00020822,2]
[313705344,1707600638403,-500.0,0.00020822,2]
[313705346,1707600638413,-500.0,0.00020822,2]
[313705348,1707600638422,-500.0,0.00020822,2]
[313705350,1707600638432,-500.0,0.00020822,2]
[313705352,1707600638441,-500.0,0.00020822,2]
[313705354,1707600638451,-500.0,0.00020822,2]
[313705356,1707600638462,-500.0,0.00020822,2]
[313705358,1707600638471,-500.0,0.00020822,2]
[313705360,1707600638481,-500.0,0.00020822,2]
[313705362,1707600638490,-500.0,0.00020822,2]
[313705364,1707600638500,-222.52885491,0.00020822,2]
[313705366,1707600638509,-500.0,0.00020822,2]
[313705368,1707600638519,-500.0,0.00020822,2]
[313705371,1707600638528,-500.0,0.00020822,2]
[313705373,1707600638538,-500.0,0.00020822,2]
[313705375,1707600638548,-500.0,0.00020822,2]
[313705377,1707600638557,-500.0,0.00020822,2]
[313705379,1707600638566,-500.0,0.00020822,2]
[313705381,1707600638576,-500.0,0.00020822,2]
[313705383,1707600638585,-500.0,0.00020822,2]
[313705385,1707600638595,-500.0,0.00020822,2]
[313705387,1707600638605,-234.45147775,0.00020822,2]
[313705389,1707600638614,-500.0,0.00020822,2]
[313705391,1707600638623,-500.0,0.00020822,2]
[313705393,1707600638633,-500.0,0.00020822,2]
[313705395,1707600638643,-500.0,0.00020822,2]
[313705397,1707600638654,-500.0,0.00020822,2]
[313705399,1707600638664,-500.0,0.00020822,2]
[313705401,1707600638673,-514.73436009,0.00020822,2]
[313705403,1707600638683,-500.0,0.00020822,2]
[313705405,1707600638692,-500.0,0.00020822,2]
[313705407,1707600638703,-500.0,0.00020822,2]
[313705409,1707600638713,-500.0,0.00020822,2]
[313705411,1707600638722,-500.0,0.00020822,2]
[313705413,1707600638731,-500.0,0.00020822,2]
[313705415,1707600638741,-500.0,0.00020822,2]
[313705417,1707600638750,-500.0,0.00020822,2]
[313705419,1707600638760,-500.0,0.00020822,2]
[313705422,1707600638770,-500.0,0.00020822,2]
[313705424,1707600638780,-500.0,0.00020822,2]
[313705426,1707600638790,-500.0,0.00020822,2]
[313705428,1707600638799,-500.0,0.00020822,2]
[313705429,1707600638808,-489.67980136,0.00020822,2]
[313705432,1707600638817,-500.0,0.00020822,2]
[313705434,1707600638826,-500.0,0.00020822,2]
[313705436,1707600638836,-500.0,0.00020822,2]
[313705437,1707600638845,-499.99999999,0.00020822,2]
[313705439,1707600638855,-500.0,0.00020822,2]
[313705441,1707600638865,-500.0,0.00020822,2]
[313705443,1707600638874,-500.0,0.00020822,2]
[313705446,1707600638883,-275.7745032,0.00020822,2]
[313705447,1707600638894,-500.0,0.00020822,2]
[313705450,1707600638903,-500.0,0.00020822,2]
[313705452,1707600638912,-500.0,0.00020822,2]
[313705454,1707600638922,-500.0,0.00020822,2]
[313705456,1707600638931,-500.0,0.00020822,2]
[313705458,1707600638941,-314.39132538,0.00020841,2]
[313705460,1707600638949,-453.055579,0.00021587,2]
[313705462,1707600638959,-1697.16135682,0.0002169,2]
[313705464,1707600638968,-14168.44539146,0.0002169,2]